fUSD/lending_fUSD_20240217
["ID","MTS","AMOUNT","RATE_DAILY","PERIOD"]
[314297398,1708161074343,-432.0,0.00052704,30]
[314297399,1708161074353,-150.0,0.00052714,120]
[314297400,1708161074362,-500.0,0.00052739,2]
[314297401,1708161074371,-500.0,0.00052739,2]
[314297402,1708161074380,-500.0,0.00052739,2]
[314297403,1708161074390,-500.0,0.00052739,2]
[314297404,1708161074399,-500.0,0.00052739,2]
[314297405,1708161074408,-500.0,0.00052739,2]
[314297406,1708161074418,-500.0,0.00052739,2]
[314297407,1708161074427,-500.0,0.00052739,2]
[314297408,1708161074436,-500.0,0.00052739,2]
[314297409,1708161074445,-500.0,0.00052739,2]
[314297410,1708161074456,-500.0,0.00052739,2]
[314297411,1708161074465,-500.0,0.00052739,2]
[314297412,1708161074475,-500.0,0.00052739,2]
[314297413,1708161074484,-500.0,0.00052739,2]
[314297414,1708161074494,-500.0,0.00052739,2]
[314297415,1708161074503,-500.0,0.00052739,2]
[314297416,1708161074512,-500.0,0.00052739,2]
[314297417,1708161074522,-500.0,0.00052739,2]
[314297418,1708161074531,-500.0,0.00052739,2]
[314297419,1708161074542,-500.0,0.00052739,2]
[314297420,1708161074551,-500.0,0.00052739,2]
[314297421,1708161074560,-500.0,0.00052739,2]
[314297422,1708161074569,-500.0,0.00052739,2]
[314297423,1708161074578,-500.0,0.00052739,2]
[314297424,1708161074587,-500.0,0.00052739,2]
[314297425,1708161074597,-500.0,0.00052739,2]
[314297426,1708161074607,-500.0,0.00052739,2]
[314297427,1708161074617,-500.0,0.00052739,2]
[314297428,1708161074627,-500.0,0.00052739,2]
[314297429,1708161074637,-500.0,0.00052739,2]
[314297430,1708161074647,-500.0,0.00052739,2]
[314297431,1708161074656,-500.0,0.00052739,2]
[314297432,1708161074665,-500.0,0.00052739,2]
[314297433,1708161074674,-500.0,0.00052739,2]
[314297434,1708161074683,-500.0,0.00052739,2]
[314297435,1708161074693,-500.0,0.00052739,2]
[314297436,1708161074702,-500.0,0.00052739,2]
[314297437,1708161074711,-500.0,0.00052739,2]
[314297438,1708161074723,-500.0,0.00052739,2]
[314297439,1708161074732,-500.0,0.00052739,2]
[314297440,1708161074741,-500.0,0.00052739,2]
[314297441,1708161074750,-500.0,0.00052739,2]
[314297442,1708161074759,-500.0,0.00052739,2]
[314297443,1708161074768,-500.0,0.00052739,2]
[314297444,1708161074777,-500.0,0.00052739,2]
[314297445,1708161074786,-500.0,0.00052739,2]
[314297446,1708161074795,-500.0,0.00052739,2]
[314297447,1708161074804,-500.0,0.00052739,2]
[314297448,1708161074812,-500.0,0.00052739,2]
[314297449,1708161074822,-500.0,0.00052739,2]
[314297450,1708161074831,-500.0,0.00052739,2]
[314297451,1708161074840,-500.0,0.00052739,2]
[314297452,1708161074849,-500.0,0.00052739,2]
[314297453,1708161074858,-500.0,0.00052739,2]
[314297454,1708161074867,-500.0,0.00052739,2]
[314297455,1708161074876,-500.0,0.00052739,2]
[314297456,1708161074888,-500.0,0.00052739,2]
[314297457,1708161074897,-500.0,0.00052739,2]
[314297458,1708161074906,-500.0,0.00052739,2]
[314297459,1708161074915,-947.51,0.0005274,30]
[314297460,1708161074925,-457.75,0.0005274,30]
[314297461,1708161074935,-1831.82,0.0005274,30]
[314297462,1708161074945,-197.021777,0.00052748,103]
[314297463,1708161074955,-160.0,0.00052767,120]
[314297464,1708161074964,-3504.26739857,0.00052784,14]
[314297465,1708161074974,-196.409247,0.00052797,30]
[314297466,1708161074983,-574.91,0.00052876,60]
[314297467,1708161074992,-535.7,0.00052876,60]
[314297468,1708161075001,-500.0,0.00052876,2]
[314297469,1708161075010,-500.0,0.00052876,60]
[314297470,1708161075019,-500.0,0.00052876,60]
[314297471,1708161075028,-500.0,0.00052876,60]
[314297472,1708161075038,-500.0,0.00052876,2]
[314297473,1708161075047,-563.05,0.00052876,2]
[314297474,1708161075057,-500.0,0.00052876,60]
[314297475,1708161075067,-500.0,0.00052876,60]
[314297476,1708161075076,-516.7,0.00052876,60]
[314297477,1708161075085,-500.0,0.00052876,60]
[314297478,1708161075094,-500.0,0.00052876,60]
[314297479,1708161075103,-1007.92,0.00052876,2]
[314297480,1708161075112,-382.03450681,0.00052876,60]
[314297481,1708161075122,-500.0,0.00052876,60]
[314297482,1708161075131,-500.0,0.00052876,60]
[314297483,1708161075140,-500.0,0.00052876,60]
[314297484,1708161075150,-503.12,0.00052876,60]
[314297485,1708161075159,-500.0,0.00052876,60]
[314297486,1708161075168,-500.0,0.00052876,60]
[314297487,1708161075177,-741.18,0.00052876,60]
[314297488,1708161075187,-500.0,0.00052876,60]
[314297489,1708161075196,-1045.89,0.00052876,60]
[314297490,1708161075205,-541.49,0.00052876,60]
[314297491,1708161075214,-500.0,0.00052876,60]
[314297492,1708161075224,-561.32,0.00052876,60]
[314297493,1708161075233,-2830.79,0.00052876,60]
[314297494,1708161075242,-1347.86,0.00052876,60]
[314297495,1708161075252,-1283.95,0.00052876,60]
[314297496,1708161075261,-4644.83,0.00052876,60]
[314297497,1708161075271,-500.0,0.00052876,60]
[314297498,1708161075280,-500.0,0.00052876,60]
[314297499,1708161075289,-793.13,0.00052876,60]
[314297500,1708161075299,-500.0,0.00052876,60]
[314297501,1708161075308,-500.0,0.00052876,60]
[314297502,1708161075317,-1438.01,0.00052876,60]
[314297503,1708161075326,-474.60185512,0.00052876,60]
[314297504,1708161075335,-2910.47,0.00052876,60]
[314297505,1708161075344,-313.71906234,0.00052876,60]
[314297506,1708161075353,-500.0,0.00052876,60]
[314297507,1708161075362,-500.0,0.00052876,60]
[314297508,1708161075371,-1068.24,0.00052876,14]
[314297509,1708161075380,-548.21,0.00052876,60]
[314297510,1708161075389,-500.0,0.00052876,60]
[314297511,1708161075398,-1670.98,0.00052876,60]
[314297512,1708161075407,-500.0,0.00052876,60]
[314297513,1708161075416,-695.79,0.00052876,60]
[314297514,1708161075425,-792.89,0.00052876,60]
[314297515,1708161075435,-1476.07,0.00052876,60]
[314297516,1708161075444,-500.0,0.00052876,60]
[314297517,1708161075454,-500.0,0.00052876,60]
[314297518,1708161075463,-500.0,0.00052876,60]
[314297519,1708161075473,-500.0,0.00052876,60]
[314297520,1708161075483,-500.0,0.00052876,60]
[314297521,1708161075492,-836.72,0.00052876,60]
[314297522,1708161075502,-1928.92,0.00052876,60]
[314297523,1708161075511,-500.0,0.00052876,60]
[314297524,1708161075521,-500.0,0.00052876,60]
[314297525,1708161075530,-173.60817754,0.00052876,60]
[314297526,1708161075539,-500.0,0.00052876,60]
[314297527,1708161075549,-500.0,0.00052876,60]
[314297528,1708161075559,-500.0,0.00052876,60]
[314297529,1708161075567,-500.0,0.00052876,60]
[314297530,1708161075576,-1019.43,0.00052876,60]
[314297531,1708161075586,-500.0,0.00052876,60]
[314297532,1708161075595,-500.0,0.00052876,60]
[314297533,1708161075604,-612.61,0.00052876,60]
[314297534,1708161075614,-1766.39,0.00052876,60]
[314297535,1708161075623,-500.0,0.00052876,60]
[314297536,1708161075633,-500.0,0.00052876,60]
[314297537,1708161075643,-1027.9,0.00052876,60]
[314297538,1708161075653,-570.48,0.00052876,60]
[314297539,1708161075662,-1285.81,0.00052876,60]
[314297540,1708161075671,-500.0,0.00052876,60]
[314297541,1708161075680,-1042.06,0.00052876,60]
[314297542,1708161075690,-500.0,0.00052876,60]
[314297543,1708161075699,-676.06,0.00052876,60]
[314297544,1708161075708,-636.2,0.00052876,60]
[314297545,1708161075717,-951.44,0.00052876,60]
[314297546,1708161075726,-10594.44,0.00052876,60]
[314297547,1708161075736,-500.0,0.00052876,60]
[314297548,1708161075745,-500.0,0.00052876,60]
[314297549,1708161075754,-500.0,0.00052876,60]
[314297550,1708161075763,-500.0,0.00052876,60]
[314297551,1708161075772,-1035.02936806,0.000529,2]
[314297552,1708161075781,-139432.0,0.000529,120]
[314297553,1708161075792,-391.78881407,0.000529,30]
[314297554,1708161075800,-38604.35455438,0.000529,30]
[314297555,1708161075809,-32075.97873068,0.000529,30]
[314297556,1708161075818,-205.0,0.00052912,31]
[314297557,1708161075827,-4152.0,0.00052957,117]
[314297558,1708161075835,-3000.0,0.00053,47]
[314297559,1708161075844,-5000.0,0.00053,62]
[314297560,1708161075854,-5000.0,0.00053,62]
[314297561,1708161075863,-3000.0,0.00053,47]
[314297562,1708161075873,-3000.0,0.00053,47]
[314297563,1708161075887,-5000.0,0.00053,62]
[314297564,1708161075895,-3000.0,0.00053,47]
[314297565,1708161075904,-5000.0,0.00053,62]
[314297566,1708161075914,-152.34,0.00053,120]
[314297567,1708161075923,-152.34,0.00053,120]
[314297568,1708161075932,-152.34,0.00053,120]
[314297569,1708161075942,-152.34,0.00053,120]
[314297570,1708161075951,-152.34,0.00053,120]
[314297571,1708161075962,-152.34,0.00053,120]
[314297572,1708161075971,-152.34,0.00053,120]
[314297573,1708161075980,-152.34,0.00053,120]
[314297574,1708161075989,-152.34,0.00053,120]
[314297575,1708161075998,-152.34,0.00053,120]
[314297576,1708161076008,-152.34,0.00053,120]
[314297577,1708161076017,-152.34,0.00053,120]
[314297578,1708161076026,-152.34,0.00053,120]
[314297579,1708161076035,-152.34,0.00053,120]
[314297580,1708161076045,-152.34,0.00053,120]
[314297581,1708161076054,-152.34,0.00053,120]
[314297582,1708161076063,-152.34,0.00053,120]
[314297583,1708161076073,-152.34,0.00053,120]
[314297584,1708161076082,-152.34,0.00053,120]
[314297585,1708161076091,-152.34,0.00053,120]
[314297586,1708161076101,-152.34,0.00053,120]
[314297587,1708161076110,-152.34,0.00053,120]
[314297588,1708161076119,-152.34,0.00053,120]
[314297589,1708161076129,-152.34,0.00053,120]
[314297590,1708161076139,-152.34,0.00053,120]
[314297591,1708161076148,-219.0,0.00053103,120]
[314297592,1708161076157,-197.021777,0.00053148,103]
[314297593,1708161076167,-574.91,0.0005315,60]
[314297594,1708161076176,-535.7,0.0005315,60]
[314297595,1708161076185,-500.0,0.0005315,2]
[314297596,1708161076194,-500.0,0.0005315,60]
[314297597,1708161076203,-500.0,0.0005315,60]
[314297598,1708161076212,-493.8386423,0.0005315,60]
[314297599,1708161076221,-472.50803834,0.0005315,2]
[314297600,1708161076230,-563.05,0.0005315,2]
[314297601,1708161076239,-500.0,0.0005315,60]
[314297602,1708161076248,-500.0,0.0005315,60]
[314297603,1708161076258,-516.7,0.0005315,60]
[314297604,1708161076267,-246.36097427,0.0005315,60]
[314297605,1708161076276,-500.0,0.0005315,60]
[314297606,1708161076286,-1007.92,0.0005315,2]
[314297607,1708161076296,-500.0,0.0005315,60]
[314297608,1708161076305,-2803.1625,0.0005315,7]
[314297609,1708161076314,-500.0,0.0005315,60]
[314297610,1708161076323,-500.0,0.0005315,60]
[314297611,1708161076332,-503.12,0.0005315,60]
[314297612,1708161076341,-500.0,0.0005315,60]
[314297613,1708161076350,-500.0,0.0005315,60]
[314297614,1708161076359,-741.18,0.0005315,60]
[314297615,1708161076368,-500.0,0.0005315,60]
[314297616,1708161076377,-1045.89,0.0005315,60]
[314297617,1708161076386,-541.49,0.0005315,60]
[314297618,1708161076395,-500.0,0.0005315,60]
[314297619,1708161076404,-561.32,0.0005315,60]
[314297620,1708161076412,-2830.79,0.0005315,60]
[314297621,1708161076422,-1347.86,0.0005315,60]
[314297622,1708161076431,-1283.95,0.0005315,60]
[314297623,1708161076440,-4644.83,0.0005315,60]
[314297624,1708161076450,-500.0,0.0005315,60]
[314297625,1708161076462,-500.0,0.0005315,60]
[314297626,1708161076471,-793.13,0.0005315,60]
[314297627,1708161076481,-500.0,0.0005315,60]
[314297628,1708161076490,-500.0,0.0005315,60]
[314297629,1708161076499,-1438.01,0.0005315,60]
[314297630,1708161076508,-2910.47,0.0005315,60]
[314297631,1708161076517,-500.0,0.0005315,60]
[314297632,1708161076526,-500.0,0.0005315,60]
[314297633,1708161076535,-1068.24,0.0005315,14]
[314297634,1708161076545,-548.21,0.0005315,60]
[314297635,1708161076554,-500.0,0.0005315,60]
[314297636,1708161076562,-1670.98,0.0005315,60]
[314297637,1708161076572,-500.0,0.0005315,60]
[314297638,1708161076581,-695.79,0.0005315,60]
[314297639,1708161076590,-792.89,0.0005315,60]
[314297640,1708161076600,-1476.07,0.0005315,60]
[314297641,1708161076610,-500.0,0.0005315,60]
[314297642,1708161076619,-500.0,0.0005315,60]
[314297643,1708161076628,-500.0,0.0005315,60]
[314297644,1708161076637,-500.0,0.0005315,60]
[314297645,1708161076647,-500.0,0.0005315,60]
[314297646,1708161076655,-836.72,0.0005315,60]
[314297647,1708161076665,-1928.92,0.0005315,60]
[314297648,1708161076675,-500.0,0.0005315,60]
[314297649,1708161076684,-500.0,0.0005315,60]
[314297650,1708161076693,-500.0,0.0005315,60]
[314297651,1708161076703,-647.53418675,0.0005315,60]
[314297652,1708161076711,-500.0,0.0005315,60]
[314297653,1708161076720,-500.0,0.0005315,60]
[314297654,1708161076730,-1019.43,0.0005315,60]
[314297655,1708161076740,-500.0,0.0005315,60]
[314297656,1708161076749,-500.0,0.0005315,60]
[314297657,1708161076757,-612.61,0.0005315,60]
[314297658,1708161076766,-1766.39,0.0005315,60]
[314297659,1708161076775,-500.0,0.0005315,60]
[314297660,1708161076784,-500.0,0.0005315,60]
[314297661,1708161076795,-1027.9,0.0005315,60]
[314297662,1708161076804,-570.48,0.0005315,60]
[314297663,1708161076813,-1285.81,0.0005315,60]
[314297664,1708161076822,-500.0,0.0005315,60]
[314297665,1708161076831,-1042.06,0.0005315,60]
[314297666,1708161076840,-500.0,0.0005315,60]
[314297667,1708161076850,-676.06,0.0005315,60]
[314297668,1708161076859,-636.2,0.0005315,60]
[314297669,1708161076869,-951.44,0.0005315,60]
[314297670,1708161076880,-10594.44,0.0005315,60]
[314297671,1708161076890,-579.69721338,0.0005315,60]
[314297672,1708161076898,-500.0,0.0005315,60]
[314297673,1708161076907,-500.0,0.0005315,60]
[314297674,1708161076918,-500.0,0.0005315,60]
[314297675,1708161076927,-160.0,0.00053151,120]
[314297676,1708161076936,-269.84842784,0.000532,120]
[314297677,1708161076946,-269.84842781,0.000532,120]
[314297678,1708161076956,-269.84842781,0.000532,120]
[314297679,1708161076965,-269.84842781,0.000532,120]
[314297680,1708161076975,-269.84842781,0.000532,120]
[314297681,1708161076984,-592.97,0.000533,120]
[314297682,1708161076993,-538.98049264,0.0005332,90]
[314297683,1708161077002,-214.72550425,0.00053367,13]
[314297684,1708161077011,-254.45312673,0.00053367,13]
[314297685,1708161077021,-2290.0,0.0005339,120]
[314297686,1708161077030,-18265.555,0.0005339,120]
[314297687,1708161077039,-5231.257,0.0005339,120]
[314297688,1708161077050,-2928.0,0.0005339,120]
[314297689,1708161077060,-1037.0,0.0005339,120]
[314297690,1708161077069,-574.91,0.00053424,60]
[314297691,1708161077078,-535.7,0.00053424,60]
[314297692,1708161077087,-500.0,0.00053424,2]
[314297693,1708161077097,-500.6388365,0.00053424,60]
[314297694,1708161077106,-500.0,0.00053424,60]
[314297695,1708161077115,-563.05,0.00053424,2]
[314297696,1708161077124,-500.0,0.00053424,60]
[314297697,1708161077134,-500.0,0.00053424,60]
[314297698,1708161077143,-516.7,0.00053424,60]
[314297699,1708161077152,-500.0,0.00053424,60]
[314297700,1708161077291,-1007.92,0.00053424,2]
[314297701,1708161077301,-500.0,0.00053424,60]
[314297702,1708161077311,-500.0,0.00053424,60]
[314297703,1708161077320,-500.0,0.00053424,60]
[314297704,1708161077329,-503.12,0.00053424,60]
[314297705,1708161077338,-500.0,0.00053424,60]
[314297706,1708161077347,-238.09942292,0.00053424,60]
[314297707,1708161077357,-741.18,0.00053424,60]
[314297708,1708161077366,-500.0,0.00053424,60]
[314297709,1708161077375,-1045.89,0.00053424,60]
[314297710,1708161077384,-541.49,0.00053424,60]
[314297711,1708161077393,-500.0,0.00053424,60]
[314297712,1708161077402,-561.32,0.00053424,60]
[314297713,1708161077412,-2830.79,0.00053424,60]
[314297714,1708161077421,-1347.86,0.00053424,60]
[314297715,1708161077430,-1283.95,0.00053424,60]
[314297716,1708161077439,-4644.83,0.00053424,60]
[314297717,1708161077449,-500.0,0.00053424,60]
[314297718,1708161077459,-500.0,0.00053424,60]
[314297719,1708161077468,-793.13,0.00053424,60]
[314297720,1708161077478,-500.0,0.00053424,60]
[314297721,1708161077488,-500.0,0.00053424,60]
[314297722,1708161077497,-1438.01,0.00053424,60]
[314297723,1708161077507,-2910.47,0.00053424,60]
[314297724,1708161077516,-500.0,0.00053424,60]
[314297725,1708161077526,-500.0,0.00053424,60]
[314297726,1708161077535,-1068.24,0.00053424,14]
[314297727,1708161077545,-548.21,0.00053424,60]
[314297728,1708161077554,-500.0,0.00053424,60]
[314297729,1708161077563,-1670.98,0.00053424,60]
[314297730,1708161077573,-500.0,0.00053424,60]
[314297731,1708161077582,-695.79,0.00053424,60]
[314297732,1708161077592,-792.89,0.00053424,60]
[314297733,1708161077602,-1476.07,0.00053424,60]
[314297734,1708161077611,-500.0,0.00053424,60]
[314297735,1708161077620,-359.94369587,0.00053424,60]
[314297736,1708161077630,-500.0,0.00053424,60]
[314297737,1708161077639,-500.0,0.00053424,60]
[314297738,1708161077649,-500.0,0.00053424,60]
[314297739,1708161077658,-836.72,0.00053424,60]
[314297740,1708161077668,-500.0,0.00053424,60]
[314297741,1708161077678,-1928.92,0.00053424,60]
[314297742,1708161077688,-500.0,0.00053424,60]
[314297743,1708161077698,-500.0,0.00053424,60]
[314297744,1708161077707,-500.0,0.00053424,60]
[314297745,1708161077716,-500.0,0.00053424,60]
[314297746,1708161077725,-1019.43,0.00053424,60]
[314297747,1708161077734,-500.0,0.00053424,60]
[314297748,1708161077743,-200.12337631,0.00053424,60]
[314297749,1708161077752,-612.61,0.00053424,60]
[314297750,1708161077762,-1766.39,0.00053424,60]
[314297751,1708161077771,-500.0,0.00053424,60]
[314297752,1708161077781,-500.0,0.00053424,60]
[314297753,1708161077791,-1027.9,0.00053424,60]
[314297754,1708161077800,-570.48,0.00053424,60]
[314297755,1708161077809,-1285.81,0.00053424,60]
[314297756,1708161077819,-500.0,0.00053424,60]
[314297757,1708161077827,-1042.06,0.00053424,60]
[314297758,1708161077837,-500.0,0.00053424,60]
[314297759,1708161077846,-676.06,0.00053424,60]
[314297760,1708161077856,-636.2,0.00053424,60]
[314297761,1708161077865,-951.44,0.00053424,60]
[314297762,1708161077875,-10594.44,0.00053424,60]
[314297763,1708161077888,-500.0,0.00053424,60]
[314297764,1708161077897,-500.0,0.00053424,60]
[314297765,1708161077905,-500.0,0.00053424,60]
[314297766,1708161077915,-1566.79,0.00053435,2]
[314297767,1708161077924,-196.409247,0.00053441,30]
[314297768,1708161077935,-197.021777,0.00053448,103]
[314297769,1708161077944,-604.0,0.00053523,7]
[314297770,1708161077954,-160.0,0.00053534,120]
[314297771,1708161077964,-153.62677801,0.00053585,58]
[314297772,1708161077974,-10000.0,0.000536,25]
[314297773,1708161077983,-18000.0,0.000536,30]
[314297774,1708161077993,-17000.0,0.000536,60]
[314297775,1708161078002,-219.0,0.00053651,120]
[314297776,1708161078012,-158.23203846,0.00053666,60]
[314297777,1708161078022,-574.91,0.00053698,60]
[314297778,1708161078032,-535.7,0.00053698,60]
[314297779,1708161078042,-500.0,0.00053698,2]
[314297780,1708161078053,-468.02366247,0.00053698,60]
[314297781,1708161078063,-563.05,0.00053698,2]
[314297782,1708161078073,-500.0,0.00053698,60]
[314297783,1708161078082,-500.0,0.00053698,60]
[314297784,1708161078092,-516.7,0.00053698,60]
[314297785,1708161078101,-1023.69,0.00053698,120]
[314297786,1708161078110,-1023.69,0.00053698,120]
[314297787,1708161078119,-1023.69,0.00053698,120]
[314297788,1708161078129,-1023.69,0.00053698,120]
[314297789,1708161078138,-1023.69,0.00053698,120]
[314297790,1708161078147,-1023.69,0.00053698,120]
[314297791,1708161078157,-1023.69,0.00053698,120]
[314297792,1708161078166,-1023.69,0.00053698,120]
[314297793,1708161078175,-1023.69,0.00053698,120]
[314297794,1708161078184,-1023.69,0.00053698,120]
[314297795,1708161078194,-1023.69,0.00053698,120]
[314297796,1708161078204,-1023.69,0.00053698,120]
[314297797,1708161078213,-1023.69,0.00053698,120]
[314297798,1708161078222,-1023.69,0.00053698,120]
[314297799,1708161078232,-1023.69,0.00053698,120]
[314297800,1708161078241,-1023.69,0.00053698,120]
[314297801,1708161078250,-1023.69,0.00053698,120]
[314297802,1708161078259,-500.0,0.00053698,60]
[314297803,1708161078268,-1007.92,0.00053698,2]
[314297804,1708161078278,-500.0,0.00053698,60]
[314297805,1708161078287,-500.0,0.00053698,60]
[314297806,1708161078298,-500.0,0.00053698,60]
[314297807,1708161078307,-503.12,0.00053698,60]
[314297808,1708161078316,-500.0,0.00053698,60]
[314297809,1708161078325,-741.18,0.00053698,60]
[314297810,1708161078335,-500.0,0.00053698,60]
[314297811,1708161078344,-1045.89,0.00053698,60]
[314297812,1708161078356,-541.49,0.00053698,60]
[314297813,1708161078365,-500.0,0.00053698,60]
[314297814,1708161078374,-561.32,0.00053698,60]
[314297815,1708161078384,-2830.79,0.00053698,60]
[314297816,1708161078393,-1347.86,0.00053698,60]
[314297817,1708161078403,-1283.95,0.00053698,60]
[314297818,1708161078412,-4644.83,0.00053698,60]
[314297819,1708161078422,-500.0,0.00053698,60]
[314297820,1708161078431,-500.0,0.00053698,60]
[314297821,1708161078441,-793.13,0.00053698,60]
[314297822,1708161078450,-500.0,0.00053698,60]
[314297823,1708161078460,-500.0,0.00053698,60]
[314297824,1708161078470,-1438.01,0.00053698,60]
[314297825,1708161078479,-2910.47,0.00053698,60]
[314297826,1708161078489,-500.0,0.00053698,60]
[314297827,1708161078499,-1068.24,0.00053698,14]
[314297828,1708161078509,-548.21,0.00053698,60]
[314297829,1708161078518,-500.0,0.00053698,60]
[314297830,1708161078527,-1670.98,0.00053698,60]
[314297831,1708161078537,-500.0,0.00053698,60]
[314297832,1708161078548,-695.79,0.00053698,60]
[314297833,1708161078558,-792.89,0.00053698,60]
[314297834,1708161078569,-1476.07,0.00053698,60]
[314297835,1708161078578,-500.0,0.00053698,60]
[314297836,1708161078588,-500.0,0.00053698,60]
[314297837,1708161078601,-500.0,0.00053698,60]
[314297838,1708161078611,-500.0,0.00053698,60]
[314297839,1708161078622,-836.72,0.00053698,60]
[314297840,1708161078632,-1928.92,0.00053698,60]
[314297841,1708161078643,-500.0,0.00053698,60]
[314297842,1708161078653,-500.0,0.00053698,60]
[314297843,1708161078664,-500.0,0.00053698,60]
[314297844,1708161078673,-500.0,0.00053698,60]
[314297845,1708161078684,-1019.43,0.00053698,60]
[314297846,1708161078693,-500.0,0.00053698,60]
[314297847,1708161078702,-612.61,0.00053698,60]
[314297848,1708161078712,-1766.39,0.00053698,60]
[314297849,1708161078722,-500.0,0.00053698,60]
[314297850,1708161078732,-1027.9,0.00053698,60]
[314297851,1708161078742,-570.48,0.00053698,60]
[314297852,1708161078751,-1285.81,0.00053698,60]
[314297853,1708161078761,-418.30970664,0.00053698,60]
[314297854,1708161078770,-1042.06,0.00053698,60]
[314297855,1708161078780,-500.0,0.00053698,60]
[314297856,1708161078791,-676.06,0.00053698,60]
[314297857,1708161078800,-636.2,0.00053698,60]
[314297858,1708161078809,-951.44,0.00053698,60]
[314297859,1708161078818,-5317.03650785,0.00053698,60]
[314297860,1708161078951,-507.45806377,0.00049863,60]
[314297861,1708161078962,-5277.40349215,0.00053698,60]
[314297862,1708161078971,-500.0,0.00053698,60]
[314297863,1708161078981,-451.11827721,0.00053698,60]
[314297864,1708161078992,-48.88172279,0.00053698,60]
[314297865,1708161079001,-500.0,0.00053698,60]
[314297866,1708161079011,-205.0,0.00053699,34]
[314297867,1708161079020,-160.0,0.00053726,120]
[314297868,1708161079030,-197.021777,0.00053748,103]
[314297869,1708161079041,-200.0,0.00053773,30]
[314297870,1708161079051,-1479.09971018,0.00053838,30]
[314297871,1708161079063,-2978.40248485,0.00053838,30]
[314297872,1708161079076,-5500.86528028,0.00053838,30]
[314297873,1708161079087,-5986.15809945,0.00053838,30]
[314297874,1708161079103,-1110.5960495,0.00053838,30]
[314297875,1708161079214,-827.63640438,0.0004768,17]
[314297876,1708161079233,-1000.0,0.00046575,120]
[314297877,1708161079623,-848.17260381,0.00046575,120]
[314297878,1708161079635,-299.975,0.00046575,120]
[314297879,1708161079647,-515.50379123,0.00046575,120]
[314297880,1708161079660,-1768.46075324,0.00046575,120]
[314297881,1708161079673,-408.94739987,0.00046575,120]
[314297882,1708161079685,-322.8916,0.00046575,120]
[314297883,1708161340830,550.0,0.00025,3]
[314297885,1708161426132,1531.14135768,0.000245,3]
[314297886,1708161599660,12697.41,0.00033,120]
[314297893,1708162232415,-600.0,0.00027,3]
[314297894,1708162232425,-165.93087205,0.000273,2]
[314297895,1708162232436,-469.0,0.000274,7]
[314297896,1708162232446,-168.8,0.00031279,2]
[314297897,1708162232457,-1026.36511531,0.00032998,4]
[314297898,1708162232468,-155.0,0.00032999,4]
[314297899,1708162232478,-206.26423774,0.00033,4]
[314297900,1708162232489,-528.17385049,0.00033,2]
[314297901,1708162232500,-2190.13128152,0.000338,2]
[314297902,1708162232513,-263.86871848,0.000338,2]
[314297903,1708162232524,-152.323226,0.0003442,2]
[314297904,1708162232534,-398.249879,0.0003452,2]